bitfinex-derivatives/quotes_ETHF0:USTF0_20250824
["timestamp","ask_amount","ask_price","bid_price","bid_amount"]
[1756074789526,1.1299,4744.0,4743.9,21.51]
[1756074790020,0.7223,4744.0,4743.9,21.51]
[1756074790221,0.3811,4744.5,4743.9,20.923]
[1756074790714,3.9301,4745.2,4744.1,0.42163]
[1756074791019,0.3811,4745.0,4744.3,0.587]
[1756074791218,0.3811,4745.0,4744.4,20.918]
[1756074792217,3.9566,4745.2,4744.4,20.918]
[1756074792424,3.2078,4745.2,4744.1,3.2078]
[1756074792622,0.3412,4745.0,4744.3,0.587]
[1756074792922,0.3412,4744.6,4744.4,20.916]
[1756074793120,0.3811,4744.5,4744.4,21.3044]
[1756074793820,0.3811,4744.5,4744.4,21.503]
[1756074794118,0.3412,4745.6,4744.6,0.1986]
[1756074794318,0.3811,4745.5,4745.0,0.1986]
[1756074794517,3.2078,4745.7,4745.1,20.914]
[1756074794720,0.3811,4745.5,4745.4,0.587]
[1756074794915,0.3811,4746.0,4745.5,0.587]
[1756074795115,3.2078,4746.3,4745.4,20.914]
[1756074795116,0.3811,4746.2,4745.7,0.3884]
[1756074795320,0.3811,4746.1,4745.8,20.913]
[1756074795520,0.3811,4746.0,4745.9,0.587]
[1756074797324,0.3811,4746.0,4745.9,21.5]
[1756074798223,3.2078,4746.3,4745.9,21.5]
[1756074798418,3.2078,4746.3,4746.1,0.587]
[1756074798621,3.2078,4746.3,4745.9,21.33448]
[1756074799326,0.3811,4746.4,4746.1,0.587]
[1756074799524,0.3811,4746.4,4746.0,0.587]
[1756074799828,0.3811,4746.8,4746.1,0.3884]
[1756074800022,0.7488,4746.7,4746.1,0.3884]
[1756074800220,0.7887,4746.6,4746.2,21.2934]
[1756074800426,0.7223,4746.4,4746.3,0.587]
[1756074800722,0.3811,4746.4,4746.3,0.587]
[1756074802824,1.1299,4746.4,4746.3,0.587]
[1756074804628,1.1299,4746.4,4746.2,20.905]
[1756074804629,1.1299,4746.3,4746.1,20.895]
[1756074804831,1.1299,4746.1,4745.6,0.1986]
[1756074805024,3.2078,4746.4,4745.6,0.1986]
[1756074805025,0.3811,4746.0,4745.7,20.894]
[1756074805336,0.3811,4745.8,4745.7,20.894]
[1756074805631,0.3811,4745.8,4745.7,20.893]
[1756074805820,0.3811,4745.8,4745.7,21.2814]
[1756074806027,0.3811,4745.8,4745.7,21.48]
[1756074806420,0.3811,4746.2,4745.7,21.48]
[1756074806624,0.7223,4746.2,4746.0,0.587]
[1756074806827,0.4076,4746.3,4746.1,0.587]
[1756074807026,3.2078,4746.9,4746.2,20.893]
[1756074807232,0.7488,4746.4,4746.3,0.3884]
[1756074807426,1.1299,4746.4,4746.3,0.3884]
[1756074807621,0.7478,4746.8,4745.7,0.384]
[1756074807826,0.7161,4746.0,4745.6,20.888]
[1756074808030,1.0958,4745.8,4745.3,3.2078]
[1756074808228,1.0958,4745.7,4745.3,3.2078]
[1756074808431,1.0958,4745.6,4745.3,3.2078]
[1756074808626,0.7277,4745.5,4745.4,0.1995]
[1756074808828,0.7277,4745.4,4745.3,3.2078]
[1756074809029,0.7277,4745.4,4745.3,24.0948]
[1756074809225,1.0958,4745.4,4745.3,24.6783]
[1756074809532,0.3681,4745.4,4745.3,24.6783]
[1756074809827,0.3681,4746.8,4746.0,0.42146]
[1756074810033,0.3681,4746.8,4746.3,0.5835]
[1756074810233,3.2078,4746.9,4746.4,20.884]
[1756074810433,0.3681,4746.7,4746.6,0.5835]
[1756074810937,1.0958,4746.7,4746.6,21.4665]
[1756074811637,1.0958,4746.7,4746.6,21.267]
[1756074813232,1.0958,4746.7,4746.6,0.384]
[1756074813431,1.0958,4746.7,4746.6,20.877]
[1756074814532,1.0958,4746.7,4746.6,21.261]
[1756074814733,1.0958,4746.7,4746.6,21.4608]
[1756074815439,0.7161,4746.7,4746.6,21.4608]
[1756074816035,1.0958,4746.7,4746.6,21.4608]
[1756074817238,0.3681,4746.7,4746.6,21.4608]
[1756074817641,0.7161,4746.7,4746.6,21.4608]
[1756074817836,1.0958,4746.7,4746.6,21.4518]
[1756074818839,0.7161,4746.4,4746.0,0.1998]
[1756074819140,3.2078,4747.0,4746.1,0.5838]
[1756074819336,3.2078,4746.5,4746.1,0.5838]
[1756074819542,1.0958,4746.4,4746.2,0.384]
[1756074819734,3.2078,4746.5,4746.2,0.384]
[1756074819735,1.0958,4746.3,4746.2,0.384]
[1756074820437,1.0958,4746.3,4745.6,30.9358]
[1756074820637,1.0958,4746.3,4745.7,20.862]
[1756074820837,3.2078,4746.5,4745.4,3.2078]
[1756074821435,0.20849373,4748.0,4744.9,24.0688]
[1756074821436,1.0958,4745.5,4744.9,24.0688]
[1756074821641,3.2078,4745.6,4744.9,3.2078]
[1756074821843,3.2078,4745.0,4744.6,0.384]
[1756074822039,0.3797,4744.7,4744.5,20.859]
[1756074822246,1.0958,4744.6,4744.3,30.348]
[1756074822445,0.7478,4744.5,4744.4,21.243]
[1756074822748,1.0958,4744.5,4744.4,21.4428]
[1756074823042,0.7161,4744.5,4744.4,21.4418]
[1756074825341,1.0958,4744.5,4744.3,30.348]
[1756074825537,1.0958,4744.9,4744.4,20.855]
[1756074825738,0.3797,4744.8,4744.4,20.855]
[1756074825943,0.3681,4744.7,4744.4,21.239]
[1756074826145,0.3681,4744.5,4744.4,21.4388]
[1756074826948,0.3681,4744.5,4744.4,21.4348]
[1756074828245,0.6058,4744.5,4744.4,21.9213]
[1756074828848,1.8032,4744.5,4744.1,0.384]
[1756074829045,1.8032,4744.0,4743.9,0.2579]
[1756074829346,0.348,4743.6,4743.2,0.1998]
[1756074829548,0.3797,4743.5,4743.3,21.0468]
[1756074829744,0.3797,4743.5,4743.4,0.5838]
[1756074830145,1.0958,4743.5,4743.4,0.5838]
[1756074830346,0.3797,4744.0,4743.4,21.4288]
[1756074830546,0.7161,4744.0,4743.5,0.5838]
[1756074830852,3.2078,4744.3,4743.5,0.384]
[1756074831057,1.0958,4744.1,4743.5,21.228]
[1756074831351,3.2078,4744.3,4743.5,21.228]
[1756074831352,1.0958,4743.9,4743.5,21.4278]
[1756074831544,0.7161,4743.7,4743.0,0.5838]
[1756074831745,0.16792154,4745.4,4743.0,0.5838]
[1756074831746,1.0958,4743.1,4743.0,0.5838]
[1756074831948,1.0958,4743.1,4742.1,3.2078]
[1756074831949,1.0958,4743.1,4742.6,0.1998]
[1756074832152,3.2078,4743.2,4742.1,3.5918]
[1756074832360,0.3681,4742.8,4742.1,3.5918]
[1756074832655,0.348,4742.7,4742.1,3.5918]
[1756074832847,0.7277,4742.7,4742.1,3.5918]
[1756074833043,0.3681,4742.6,4742.1,3.5918]
[1756074833249,0.3681,4742.1,4741.5,0.5838]
[1756074833648,0.3681,4741.9,4741.5,0.384]
[1756074833951,0.348,4741.8,4741.7,0.5838]
[1756074834452,0.7161,4741.8,4741.7,0.5838]
[1756074834843,1.0958,4741.8,4741.7,0.5838]
[1756074835153,1.0958,4741.7,4741.4,0.5838]
[1756074835348,1.0958,4741.6,4741.5,0.1998]
[1756074835750,1.0958,4741.6,4741.5,0.5838]
[1756074836952,0.3681,4741.6,4741.5,0.5838]
[1756074837152,0.7161,4741.6,4741.5,0.5838]
[1756074837749,1.0805,4741.6,4741.5,0.5838]
[1756074837954,0.3644,4741.5,4740.8,0.3958]
[1756074838143,0.7095,4741.0,4740.4,0.3958]
[1756074838349,0.3509,4740.8,4740.3,21.4316]
[1756074838551,0.7095,4740.7,4740.4,0.5956]
[1756074838750,0.696,4740.6,4740.5,0.5956]
[1756074838950,1.0604,4740.6,4740.5,0.5956]
[1756074840458,0.3509,4741.1,4740.6,0.42195]
[1756074840750,0.3509,4741.7,4741.1,0.3958]
[1756074840951,0.7095,4741.9,4741.2,20.834]
[1756074841155,0.3509,4741.5,4741.4,0.5956]
[1756074841654,0.696,4741.5,4741.4,0.3958]
[1756074841852,0.7095,4741.3,4741.0,20.832]
[1756074842048,0.696,4741.2,4741.1,0.5956]
[1756074842249,3.2078,4741.2,4740.8,20.83]
[1756074842454,0.7095,4741.1,4740.3,0.5956]
[1756074842655,3.2078,4741.2,4740.7,0.3958]
[1756074842847,0.3509,4740.9,4740.8,0.5956]
[1756074843161,0.3509,4741.6,4741.0,0.3958]
[1756074843357,0.3509,4741.5,4741.3,0.5956]
[1756074843548,0.3509,4741.4,4741.3,20.83]
[1756074843756,0.3644,4742.0,4741.3,20.83]
[1756074843954,0.3644,4742.0,4741.4,0.3958]
[1756074844158,1.0604,4742.0,4741.5,20.829]
[1756074844457,1.0604,4741.5,4741.1,0.3958]
[1756074844757,3.2078,4741.6,4741.1,0.3958]
[1756074844758,1.0604,4741.3,4741.1,0.3958]
[1756074844961,3.2078,4741.6,4740.9,20.827]
[1756074845159,0.3509,4741.0,4740.9,20.827]
[1756074845555,0.3509,4741.0,4740.9,0.5956]
[1756074845858,1.0604,4741.0,4740.9,0.5956]
[1756074846259,0.3509,4741.0,4740.9,0.5956]
[1756074847156,0.696,4741.0,4740.3,0.3958]
[1756074847357,0.7153,4740.8,4740.5,0.3958]
[1756074847663,0.3509,4740.7,4740.6,0.5956]
[1756074848666,3.2078,4741.1,4740.6,0.5956]
[1756074848961,0.3509,4740.9,4740.7,0.5956]
[1756074849261,0.3509,4740.9,4740.2,30.357]
[1756074849262,0.3509,4741.2,4740.2,30.357]
[1756074849457,0.3509,4741.0,4740.3,20.82]
[1756074849953,0.3509,4741.6,4740.7,0.42194]
[1756074850159,0.3509,4741.6,4741.0,0.5956]
[1756074850460,0.3509,4741.5,4741.3,0.1998]
[1756074850651,3.9173,4741.8,4741.4,0.5956]
[1756074850854,0.3451,4741.6,4740.9,0.3958]
[1756074851059,0.3644,4741.5,4741.0,20.817]
[1756074851262,3.2078,4741.8,4741.0,21.0168]
[1756074851462,1.0604,4741.2,4741.1,0.3958]
[1756074851659,1.0604,4741.7,4740.9,20.814]
[1756074851959,1.0604,4741.5,4740.8,20.814]
[1756074852266,0.3644,4741.1,4740.8,21.4096]
[1756074852562,0.3644,4740.9,4740.8,21.4096]
[1756074852757,1.0604,4740.9,4740.8,0.3958]
[1756074853360,1.0604,4741.2,4740.5,0.3958]
[1756074853561,0.696,4740.9,4740.7,0.5956]
[1756074853760,3.2078,4741.3,4740.7,0.5956]
[1756074853761,1.0604,4740.8,4740.7,0.5956]
[1756074855869,1.7765,4740.8,4740.7,1.0533]
[1756074856470,0.7095,4741.3,4740.7,1.0533]
[1756074856771,1.7765,4741.1,4741.0,1.0533]
[1756074857165,2.38787493,4741.1,4741.0,1.0533]
[1756074857666,2.38787493,4741.1,4741.0,0.639]
[1756074857862,2.38787493,4741.1,4741.0,0.2432]
[1756074858068,1.32747493,4741.1,4740.6,0.5956]
[1756074858369,3.2078,4741.3,4740.6,0.5956]
[1756074858370,1.7765,4740.7,4740.6,0.8388]
[1756074858571,0.2355,4740.3,4740.2,0.3958]
[1756074858766,0.3509,4740.2,4739.9,20.8]
[1756074858966,1.7765,4740.0,4739.9,21.0432]
[1756074859167,1.7765,4740.0,4739.9,21.6388]
[1756074859866,1.7765,4740.0,4739.9,0.8388]
[1756074860073,0.8102,4740.0,4739.9,1.0533]
[1756074860370,1.19913138,4740.0,4739.9,1.0533]
[1756074860766,3.2078,4740.7,4740.3,0.4577]
[1756074861072,0.61273755,4740.6,4740.5,1.0533]
[1756074861266,0.61273755,4740.6,4740.5,21.8483]
[1756074861668,0.96363755,4740.6,4740.5,21.8483]
[1756074863382,1.45593755,4740.6,4740.5,1.0533]
[1756074863580,2.38923755,4740.6,4740.5,21.8433]
[1756074864078,1.19913755,4740.6,4740.5,21.8433]
[1756074865078,0.96363755,4740.6,4740.5,21.8433]
[1756074865472,1.67973755,4740.6,4740.5,21.8433]
[1756074865678,2.38923755,4740.6,4740.5,21.8433]
[1756074866283,2.38923755,4740.6,4740.0,0.5956]
[1756074866482,0.7161,4740.2,4740.1,21.0282]
[1756074866781,2.38923755,4740.2,4740.1,21.6208]
[1756074866981,2.38923755,4740.2,4740.1,21.0252]
[1756074867381,1.0604,4740.1,4739.7,0.5956]
[1756074867581,1.7765,4739.8,4739.7,1.0533]
[1756074867780,2.38923755,4739.8,4739.7,21.8323]
[1756074868179,2.38923755,4739.8,4739.7,1.0533]
[1756074868375,0.6873,4739.6,4739.5,3.2078]
[1756074868577,1.4939,4739.5,4739.4,20.777]
[1756074868774,1.0207,4738.8,4738.7,1.0439]
[1756074868978,2.34255581,4738.8,4738.7,21.4043]
[1756074869378,2.34255581,4738.8,4738.7,21.605]
[1756074869677,2.34255581,4738.8,4738.7,21.8209]
[1756074869876,2.34255581,4738.8,4738.7,21.4043]
[1756074870274,0.6873,4738.4,4738.3,3.6473]
[1756074870472,1.7287,4738.4,4738.3,4.0358]
[1756074870875,2.34148724,4738.4,4738.3,4.0358]
[1756074871083,2.34148724,4738.4,4738.3,3.8351]
[1756074871279,1.7287,4738.4,4738.3,0.2388]
[1756074871883,1.7287,4738.4,4738.3,0.8272]
[1756074872784,1.7287,4738.3,4738.2,0.2388]
[1756074872983,1.7287,4738.3,4738.0,20.772]
[1756074873284,3.2078,4739.1,4738.0,20.772]
[1756074873285,1.7287,4738.1,4738.0,21.0078]
[1756074873472,1.7287,4738.1,4738.0,21.3963]
[1756074873674,1.3759,4738.1,4738.0,21.8121]
[1756074873886,3.2078,4738.6,4738.0,21.64588]
[1756074874185,3.2078,4738.6,4738.5,0.5884]
[1756074874385,0.3552,4739.0,4738.9,0.6546]
[1756074874679,2.34048289,4739.0,4738.9,1.0431]
[1756074874881,2.34048289,4739.0,4738.9,0.6273]
[1756074875086,1.20438289,4739.0,4738.9,1.0431]
[1756074875379,0.5926,4739.0,4738.9,1.0431]
[1756074875889,1.7287,4739.0,4738.9,0.2388]
[1756074876190,0.6873,4738.7,4738.6,21.3913]
[1756074876384,1.7287,4738.7,4738.6,0.6273]
[1756074876687,1.7287,4738.4,4738.3,0.00758019]
[1756074877180,1.7287,4738.4,4738.3,0.63488019]
[1756074877484,1.7287,4738.4,4738.3,1.05068019]
[1756074878480,1.0414,4738.4,4738.3,0.00758019]
[1756074879689,0.3552,4738.4,4738.3,0.59598019]
[1756074880585,3.2078,4738.5,4738.3,0.59598019]
[1756074880780,3.2078,4738.5,4738.4,0.5884]
[1756074880984,3.8964,4738.5,4738.4,0.5884]
[1756074881196,1.0414,4738.4,4738.3,0.00758019]
[1756074881487,0.3552,4738.4,4738.3,0.59598019]
[1756074882292,3.2078,4738.5,4738.4,0.5884]
[1756074882492,3.563,4738.5,4738.4,0.5884]
[1756074882888,0.3552,4739.1,4739.0,1.01049]
[1756074883095,0.3552,4739.5,4739.2,0.5884]
[1756074883289,0.3552,4739.4,4739.3,0.5884]
[1756074883490,1.0414,4739.4,4739.3,21.3364]
[1756074883693,1.0414,4739.4,4739.3,0.5884]
[1756074883893,3.563,4740.0,4739.3,21.3364]
[1756074884093,3.563,4740.0,4739.7,0.5884]
[1756074884392,0.3552,4740.6,4740.0,0.5884]
[1756074884588,0.3552,4740.5,4740.2,0.1999]
[1756074884787,0.3528,4740.7,4740.2,0.5884]
[1756074884984,0.3552,4740.6,4740.1,20.746]
[1756074885195,0.3552,4741.0,4740.4,0.42196]
[1756074885396,3.5412,4741.4,4740.4,0.42196]
[1756074885397,0.3552,4740.9,4740.6,0.5884]
[1756074885585,0.3552,4740.9,4740.7,20.743]
[1756074885792,3.563,4741.4,4740.9,0.42192]
[1756074886090,0.3552,4741.9,4741.3,3.2078]
[1756074886292,0.3552,4742.3,4741.8,0.42184]
[1756074886483,0.3552,4742.3,4742.0,0.5884]
[1756074886689,0.3552,4742.3,4742.1,20.74]
[1756074886996,0.3552,4742.9,4742.1,20.74]
[1756074887192,0.3552,4742.9,4742.8,3.7962]
[1756074887394,0.3552,4742.9,4742.8,24.5352]
[1756074887591,0.3552,4743.3,4743.0,0.5884]
[1756074887795,0.3552,4743.9,4743.1,0.3885]
[1756074888092,0.3552,4743.9,4743.1,0.5884]
[1756074888291,0.3552,4743.9,4743.1,0.1999]
[1756074888596,0.3552,4743.9,4743.2,0.3885]
[1756074888794,0.3552,4743.9,4743.3,0.1999]
[1756074888997,0.3552,4743.9,4743.4,0.3885]
[1756074889201,0.3334,4744.1,4743.0,3.62953]
[1756074889202,0.3552,4744.0,4743.5,20.733]
[1756074889391,3.2078,4744.4,4743.8,0.1999]
[1756074889592,1.0414,4744.3,4744.1,0.3885]
[1756074889793,0.3552,4744.2,4744.1,0.3885]
[1756074889992,0.3552,4744.2,4744.1,0.5884]
[1756074890389,0.3552,4744.9,4744.2,0.5884]
[1756074890592,0.3552,4744.9,4744.0,3.62944]
[1756074890787,0.3552,4744.9,4744.4,0.1999]
[1756074890993,0.3552,4744.8,4744.5,0.5884]
[1756074891196,0.3552,4744.8,4744.7,0.5884]
[1756074894694,0.6862,4745.7,4744.8,0.3885]
[1756074894897,0.3552,4745.6,4744.9,0.1999]
[1756074895293,0.3552,4745.7,4745.6,0.3885]
[1756074895499,0.3552,4747.0,4746.2,0.42145]
[1756074895795,0.3552,4746.9,4746.5,3.2078]
[1756074895998,0.3552,4746.9,4746.8,0.5884]
[1756074897998,0.687,4746.9,4746.8,0.5884]
[1756074898197,1.0577,4746.9,4746.8,0.3885]
[1756074898396,1.0577,4746.9,4746.4,0.1991]
[1756074898597,1.0546,4746.7,4746.5,0.5734]
[1756074898804,0.3521,4746.6,4746.5,0.5734]
[1756074900500,0.37291428,4748.6,4746.5,0.5734]
[1756074900501,0.3521,4747.0,4746.7,0.3743]
[1756074900702,0.3521,4747.5,4746.8,0.1991]
[1756074900904,0.7025,4747.4,4746.8,0.1991]
[1756074901095,3.2078,4747.6,4746.7,21.0553]
[1756074901505,0.7228,4747.4,4746.6,20.681]
[1756074901703,1.0546,4747.5,4746.6,20.681]
[1756074901900,1.0546,4747.4,4746.6,20.681]
[1756074902097,0.7228,4747.3,4746.6,20.681]
[1756074902404,0.3521,4747.2,4746.6,20.681]
[1756074902705,0.7025,4747.4,4746.7,0.5734]
[1756074902905,0.3521,4747.3,4746.7,0.5734]
[1756074903494,0.3318,4747.2,4746.7,0.5734]
[1756074903707,0.7228,4747.0,4746.8,0.3743]
[1756074903903,0.3707,4747.0,4746.8,0.1991]
[1756074904210,0.6839,4746.9,4746.8,0.5734]
[1756074904403,0.3521,4746.9,4746.8,0.5734]
[1756074906004,1.0546,4746.9,4746.8,0.5734]
[1756074906199,0.3521,4746.9,4746.8,0.5734]
[1756074906900,0.3521,4747.4,4746.6,20.681]
[1756074907100,0.3521,4747.3,4747.0,0.3743]
[1756074907301,0.3521,4747.2,4747.1,0.3743]
[1756074907506,0.3521,4747.2,4747.1,21.2344]
[1756074908207,3.2078,4747.6,4747.1,21.2344]
[1756074908208,0.3521,4747.4,4747.1,20.661]
[1756074908409,0.3521,4747.2,4747.1,20.661]
[1756074908805,0.3521,4747.2,4747.1,21.0353]
[1756074909107,0.3521,4747.2,4747.1,21.2344]
[1756074909606,1.0546,4747.2,4747.1,20.657]
[1756074909798,1.0546,4747.2,4747.1,21.2304]
[1756074910003,1.0546,4747.2,4747.1,21.2264]
[1756074910208,0.3521,4747.7,4747.6,0.5734]
[1756074910510,0.6839,4747.7,4747.6,3.7812]
[1756074910697,1.0546,4747.7,4747.6,21.2244]
[1756074911304,1.68113449,4747.7,4747.6,21.2244]
[1756074911706,1.32903449,4747.7,4747.0,3.4069]
[1756074911908,0.62653449,4747.6,4747.0,20.647]
[1756074912111,0.3521,4747.1,4747.0,21.2204]
[1756074912308,0.3521,4747.4,4747.3,0.5734]
[1756074912511,3.5599,4747.8,4747.4,0.42134]
[1756074912813,0.62755554,4747.7,4747.6,0.5734]
[1756074913016,0.62755554,4747.7,4747.6,21.2174]
[1756074913703,0.42845554,4747.7,4747.6,25.2174]
[1756074913910,0.3521,4749.1,4748.8,0.42121]
[1756074914108,0.3521,4749.5,4749.1,0.2846]
[1756074914310,0.16999847,4751.2,4750.0,0.42111]
[1756074914311,0.3521,4750.3,4750.0,0.42111]
[1756074914617,0.3521,4751.6,4750.3,0.1846]
[1756074914811,0.3521,4751.6,4750.8,0.1846]
[1756074915012,0.3521,4751.6,4750.9,20.638]
[1756074915309,0.3707,4751.5,4750.8,0.1846]
[1756074915516,3.2078,4751.7,4750.9,20.635]
[1756074915713,3.2078,4751.7,4750.4,30.345]
[1756074915714,1.0546,4751.4,4751.0,20.634]
[1756074915914,0.7025,4751.2,4751.1,20.634]
[1756074916112,0.3521,4751.2,4751.1,20.8186]
[1756074916311,0.3521,4751.7,4751.1,0.1846]
[1756074916516,1.0546,4751.5,4751.2,20.632]
[1756074916713,1.0546,4751.4,4750.9,3.2078]
[1756074916919,1.0546,4751.3,4751.0,20.631]
[1756074917114,1.0546,4751.6,4751.0,20.631]
[1756074917313,0.3318,4751.2,4750.6,0.1846]
[1756074917617,1.0546,4751.2,4751.1,20.631]
[1756074917807,1.0546,4751.2,4751.1,20.8156]
[1756074918214,1.0546,4751.2,4750.5,0.1846]
[1756074918414,0.3521,4751.1,4750.6,20.623]
[1756074918714,0.3707,4751.0,4750.6,20.623]
[1756074919015,0.3521,4750.9,4750.8,0.1846]
[1756074919216,0.3521,4750.9,4750.8,3.3924]
[1756074919617,0.7228,4750.9,4750.8,3.3924]
[1756074919918,1.0546,4750.9,4750.8,24.0124]
[1756074920214,0.7228,4750.9,4750.8,24.0124]
[1756074920410,0.7228,4750.9,4750.4,30.345]
[1756074920612,0.3318,4750.7,4750.5,20.617]
[1756074920819,0.3521,4750.6,4750.5,20.797]
[1756074921014,0.3521,4751.1,4750.5,20.617]
[1756074921211,0.6839,4751.6,4750.6,20.612]
[1756074921412,0.3521,4751.5,4750.7,20.611]
[1756074921613,0.3521,4751.5,4750.8,3.2078]
[1756074922009,0.3521,4751.5,4750.9,0.18]
[1756074923511,0.7025,4751.8,4751.0,0.18]
[1756074923713,0.3707,4751.6,4751.0,0.18]
[1756074923917,1.0546,4751.8,4751.1,20.606]
[1756074924112,0.3521,4751.8,4751.2,0.18]
[1756074924321,0.3318,4752.2,4751.6,0.18]
[1756074924615,0.3318,4751.8,4751.3,20.602]
[1756074924820,0.3318,4751.6,4751.3,20.782]
[1756074925023,0.3521,4751.4,4751.3,20.602]
[1756074925218,1.0546,4751.4,4751.3,20.602]
[1756074925522,0.3521,4751.4,4751.3,20.782]
[1756074925816,1.0546,4751.3,4751.2,3.2078]
[1756074926118,1.0546,4751.2,4750.4,30.525]
[1756074926310,0.58174311,4751.1,4750.4,30.525]
[1756074926518,0.7025,4750.8,4750.4,30.525]
[1756074926815,1.0546,4750.5,4750.4,30.345]
[1756074927021,1.63634311,4750.5,4750.4,50.941]
[1756074927216,1.63634311,4750.5,4750.4,30.345]
[1756074927521,1.63634311,4750.5,4750.4,50.937]
[1756074928417,1.63634311,4750.5,4750.4,30.345]
[1756074928625,1.63634311,4750.5,4750.4,50.936]
[1756074929015,1.63634311,4750.5,4750.4,50.934]
[1756074930224,0.3619,4750.3,4749.5,0.18]
[1756074930518,0.58174311,4750.2,4749.6,20.584]
[1756074930818,3.2078,4750.3,4749.8,0.1765]
[1756074930819,0.6919,4749.9,4749.8,0.1765]
[1756074931022,1.60364311,4749.9,4749.8,0.1765]
[1756074931921,1.27364311,4749.9,4749.2,3.2078]
[1756074932120,0.33,4749.7,4749.3,20.58]
[1756074932312,0.58174311,4749.6,4749.3,20.58]
[1756074932517,0.91174311,4749.6,4749.5,0.1747]
[1756074932813,0.91174311,4749.6,4749.5,20.7547]
[1756074934122,0.91174311,4749.6,4749.5,20.7497]
[1756074934829,1.27364311,4749.6,4749.5,0.1747]
[1756074935023,0.58174311,4749.6,4749.5,20.573]
[1756074935326,0.58174311,4749.6,4749.5,20.7477]
[1756074935727,0.91174311,4749.6,4749.5,20.7477]
[1756074936032,1.27364311,4749.6,4749.5,20.7477]
[1756074937122,0.58174311,4749.6,4749.5,24.7477]
[1756074937630,0.58174311,4749.6,4749.5,25.16286]
[1756074937832,0.40704311,4749.6,4749.5,25.16286]
[1756074938033,3.5378,4750.9,4750.1,0.4211]
[1756074938329,0.6919,4750.6,4750.2,23.7728]
[1756074938527,0.33,4750.7,4750.2,23.7728]
[1756074938528,0.6919,4750.4,4750.3,20.565]
[1756074938726,0.33,4750.3,4750.2,3.2078]
[1756074938930,0.33,4750.8,4750.2,23.7708]
[1756074939131,0.33,4750.8,4750.7,3.2078]
[1756074939330,0.33,4750.8,4750.7,23.7708]
[1756074939727,4.67616182,4751.6,4750.7,23.7708]
[1756074939934,0.33,4751.7,4750.7,23.7708]
[1756074940130,3.5378,4751.7,4750.7,23.7708]
[1756074940331,3.5378,4751.7,4750.7,24.19185]
[1756074940837,0.33,4751.7,4750.7,23.7708]
[1756074941238,0.33,4751.7,4750.7,24.19185]
[1756074941433,0.33,4751.7,4750.7,23.7708]
[1756074941944,0.33,4751.7,4750.8,20.56]
[1756074942236,0.33,4751.7,4750.5,0.42107]
[1756074942237,3.2078,4751.5,4750.2,3.2078]
[1756074942437,1.0219,4750.8,4750.3,20.553]
[1756074942638,3.2078,4750.9,4750.2,3.2078]
[1756074942938,1.0219,4750.3,4750.2,3.2078]
[1756074943142,1.0219,4750.3,4750.2,23.7598]
[1756074943637,0.6919,4750.3,4750.2,23.7598]
[1756074943841,3.5697,4750.9,4750.2,23.7598]
[1756074944040,0.6919,4750.8,4750.2,3.2078]
[1756074944237,0.6919,4750.8,4749.0,30.321]
[1756074944238,3.2078,4750.3,4749.2,3.2078]
[1756074944430,0.33,4750.2,4749.3,20.548]
[1756074944633,0.6919,4750.1,4749.2,3.2078]
[1756074944835,0.33,4750.0,4749.3,20.547]
[1756074945140,0.33,4749.8,4749.4,20.547]
[1756074945336,0.6919,4750.2,4749.5,20.546]
[1756074945534,1.0219,4750.1,4749.5,20.546]
[1756074945735,3.2078,4750.3,4749.5,20.546]
[1756074946041,1.0219,4750.1,4749.5,20.546]
[1756074946237,0.6919,4749.9,4749.2,3.2078]
[1756074946442,0.33,4749.8,4749.6,20.546]
[1756074946642,0.33,4750.1,4749.7,23.7508]
[1756074946941,3.2078,4750.3,4749.7,23.7508]
[1756074947142,1.0219,4750.1,4749.8,20.541]
[1756074947436,0.6919,4749.9,4749.8,20.541]
[1756074947630,0.33,4749.9,4749.8,20.541]
[1756074948938,0.33,4749.8,4749.2,3.2078]
[1756074949139,0.33,4749.6,4749.3,20.541]
[1756074949339,0.3619,4749.5,4749.2,3.2078]
[1756074949534,0.33,4750.0,4749.6,0.42115]
[1756074949938,0.33,4750.0,4749.8,3.62892]
[1756074950137,0.33,4750.0,4749.9,20.536]
[1756074950546,0.33,4750.6,4750.0,0.42111]
[1756074951443,0.33,4750.6,4750.3,0.42108]
[1756074951644,0.33,4750.6,4750.4,20.532]
[1756074951842,3.2078,4750.9,4750.4,20.532]
[1756074952046,0.33,4750.8,4750.4,20.532]
[1756074952241,0.33,4750.7,4750.4,20.532]
[1756074952547,0.33,4751.3,4751.0,0.42102]
[1756074952740,3.2078,4751.6,4751.1,20.529]
[1756074953047,0.33,4751.2,4751.1,20.529]
[1756074953547,0.33,4751.2,4750.8,0.42104]
[1756074953741,1.0219,4751.5,4750.9,20.527]
[1756074953938,0.33,4751.5,4750.9,20.527]
[1756074954147,3.2078,4751.6,4750.9,20.527]
[1756074954448,0.6919,4751.0,4750.9,20.527]
[1756074954742,0.33,4751.0,4750.9,20.527]
[1756074955042,0.33,4751.4,4750.5,3.62886]
[1756074955250,0.6919,4751.3,4750.6,20.523]
[1756074955645,0.3619,4751.3,4750.6,20.523]